{"text_format":"1","workbook":"xlsx","n_sheets":4,"sheets":["Salons Thématiques","Ne pas toucher svp 1","Ne pas toucher svp 2","NE PAS SUPPRIMER"],"not_rendered":{"charts":0,"images":1,"macros":1,"external_links":0,"defined_names":0,"comments":1,"pivot_tables":0},"unopened":[],"bounds":{"document_bytes":16777216,"sheet_cells":100000,"rows_first":2000,"rows_last":500,"rows_between":2000,"halvings":0,"cell_chars":16384,"cell_head_chars":4096},"cells_cut":0,"cells_raw":0,"read":"whole","date_system":"1900"}

{"sheet":"Salons Thématiques","index":0,"n_rows":25,"n_cols":8,"rows_kept":25,"cut":false,"hidden":false,"merged":[[13,0,13,7],[14,0,14,7],[22,0,22,7],[0,0,0,7],[1,0,1,7],[2,0,2,7]]}
["Fonds régional d'aide à l'édition\nDemande d'aide à participation aux salons thématiques 2023"]
["formulaire à envoyer à dcplivre@auvergnerhonealpes.fr"]
["I. IDENTIFICATION DE LA MAISON D'EDITION"]
["Nom de la maison d'édition",null,null,"Adresse",null,null,"Nombre de titres au catalogue"]
["Raison sociale (si différente)",null,null,"Code Postal ",null,null,"Nombre de titres publiés en 2019"]
["Domaine éditorial principal",null,null,"Commune",null,null,"Nombre de titres publiés en 2020"]
["Code APE",null,null,"Téléphone portable",null,null,"Nombre de titres publiés en 2021"]
["N° SIRET",null,null,"Email"]
["Année de création",null,null,null,null,null,"Chiffre d'affaires du dernier exercice comptable"]
["Statut Juridique",null,null,"Diffuseur"]
["Nom de la personne en charge du dossier ",null,null,"Distributeur",null,null,"Nombre de salariés"]
["Qualité / fonction"]
[]
["II. SOUHAITS DE PARTICIPATION 2022"]
["Dressez la liste hiérarchisée de vos souhaits de participation 2023 à un ou plusieurs salons du livre \n(hors Auvergne-Rhône-Alpes) - fournir les devis"]
["Ordre","Nom du salon","Lieu","Dates ","Coût module de base HT","Coût inscription et assurance HT","Coût total éligible HT\n(Coût module de base HT + Coût inscription et assurance HT)","Coût espace souhaité HT\n(A titre indicatif)"]
[1,null,null,null,null,null,{"$f":"SUM(E17:F17)","v":0}]
[2,null,null,null,null,null,{"$f":"SUM(E18:F18)","v":0}]
[3,null,null,null,null,null,0]
[4,null,null,null,null,null,0]
[5,null,null,null,null,null,0]
[]
["III. PARTICIPATIONS A DES SALONS EN 2022"]
[]
["Nom du salon","Lieu","Aide régionale (oui/non)","Montant obtenu"]

{"sheet":"Ne pas toucher svp 1","index":1,"n_rows":6,"n_cols":22,"rows_kept":6,"cut":false,"hidden":false,"merged":[]}
["N°","MAISON D'EDITION","Raison sociale ","Domaine éditorial","Vœux salons - nom","Lieu","Date","Coût module de base HT","Coût inscription et assurance HT","Coût total éligible HT\n(Coût module de base HT + Coût inscription et assurance HT)","Coût espace souhaité HT\n(A titre indicatif)","Minimum retenu - total",0.75,0.8,"Total Editeur","Nom de la personne en charge du dossier","Qualité fonction","Adresse","Code postal","Ville","Téléphone","Email"]
[null,{"$f":"'Salons Thématiques'!$B$4","v":0},{"$f":"'Salons Thématiques'!$B$5","v":0},{"$f":"'Salons Thématiques'!$B$6","v":0},{"$f":"'Salons Thématiques'!B17","v":0},{"$f":"'Salons Thématiques'!C17","v":0},{"$f":"'Salons Thématiques'!D17","v":"00:00:00"},{"$f":"'Salons Thématiques'!E17","v":0},{"$f":"'Salons Thématiques'!F17","v":0},{"$f":"'Salons Thématiques'!G17","v":0},{"$f":"'Salons Thématiques'!H17","v":0},{"$f":"J2","v":0},{"$f":"L2*75%","v":0},{"$f":"L2*80%","v":0},null,{"$f":"'Salons Thématiques'!$B$11","v":0},{"$f":"'Salons Thématiques'!$B$12","v":0},{"$f":"'Salons Thématiques'!$E$4","v":0},{"$f":"'Salons Thématiques'!$E$5","v":0},{"$f":"'Salons Thématiques'!$E$6","v":0},{"$f":"'Salons Thématiques'!$E$7","v":0},{"$f":"'Salons Thématiques'!$E$8","v":0}]
[null,{"$f":"'Salons Thématiques'!$B$4","v":0},{"$f":"'Salons Thématiques'!$B$5","v":0},{"$f":"'Salons Thématiques'!$B$6","v":0},{"$f":"'Salons Thématiques'!B18","v":0},{"$f":"'Salons Thématiques'!C18","v":0},{"$f":"'Salons Thématiques'!D18","v":"00:00:00"},{"$f":"'Salons Thématiques'!E18","v":0},{"$f":"'Salons Thématiques'!F18","v":0},{"$f":"'Salons Thématiques'!G18","v":0},{"$f":"'Salons Thématiques'!H18","v":0},{"$f":"J3","v":0},{"$f":"L3*75%","v":0},{"$f":"L3*80%","v":0},null,{"$f":"'Salons Thématiques'!$B$11","v":0},{"$f":"'Salons Thématiques'!$B$12","v":0},{"$f":"'Salons Thématiques'!$E$4","v":0},{"$f":"'Salons Thématiques'!$E$5","v":0},{"$f":"'Salons Thématiques'!$E$6","v":0},{"$f":"'Salons Thématiques'!$E$7","v":0},{"$f":"'Salons Thématiques'!$E$8","v":0}]
[null,{"$f":"'Salons Thématiques'!$B$4","v":0},{"$f":"'Salons Thématiques'!$B$5","v":0},{"$f":"'Salons Thématiques'!$B$6","v":0},{"$f":"'Salons Thématiques'!B19","v":0},{"$f":"'Salons Thématiques'!C19","v":0},{"$f":"'Salons Thématiques'!D19","v":"00:00:00"},{"$f":"'Salons Thématiques'!E19","v":0},{"$f":"'Salons Thématiques'!F19","v":0},{"$f":"'Salons Thématiques'!G19","v":0},{"$f":"'Salons Thématiques'!H19","v":0},0,0,0,null,{"$f":"'Salons Thématiques'!$B$11","v":0},{"$f":"'Salons Thématiques'!$B$12","v":0},{"$f":"'Salons Thématiques'!$E$4","v":0},{"$f":"'Salons Thématiques'!$E$5","v":0},{"$f":"'Salons Thématiques'!$E$6","v":0},{"$f":"'Salons Thématiques'!$E$7","v":0},{"$f":"'Salons Thématiques'!$E$8","v":0}]
[null,{"$f":"'Salons Thématiques'!$B$4","v":0},{"$f":"'Salons Thématiques'!$B$5","v":0},{"$f":"'Salons Thématiques'!$B$6","v":0},{"$f":"'Salons Thématiques'!B20","v":0},{"$f":"'Salons Thématiques'!C20","v":0},{"$f":"'Salons Thématiques'!D20","v":"00:00:00"},{"$f":"'Salons Thématiques'!E20","v":0},{"$f":"'Salons Thématiques'!F20","v":0},{"$f":"'Salons Thématiques'!G20","v":0},{"$f":"'Salons Thématiques'!H20","v":0},0,0,0,null,{"$f":"'Salons Thématiques'!$B$11","v":0},{"$f":"'Salons Thématiques'!$B$12","v":0},{"$f":"'Salons Thématiques'!$E$4","v":0},{"$f":"'Salons Thématiques'!$E$5","v":0},{"$f":"'Salons Thématiques'!$E$6","v":0},{"$f":"'Salons Thématiques'!$E$7","v":0},{"$f":"'Salons Thématiques'!$E$8","v":0}]
[null,{"$f":"'Salons Thématiques'!$B$4","v":0},{"$f":"'Salons Thématiques'!$B$5","v":0},{"$f":"'Salons Thématiques'!$B$6","v":0},{"$f":"'Salons Thématiques'!B21","v":0},{"$f":"'Salons Thématiques'!C21","v":0},{"$f":"'Salons Thématiques'!D21","v":"00:00:00"},{"$f":"'Salons Thématiques'!E21","v":0},{"$f":"'Salons Thématiques'!F21","v":0},{"$f":"'Salons Thématiques'!G21","v":0},{"$f":"'Salons Thématiques'!H21","v":0},0,0,0,null,{"$f":"'Salons Thématiques'!$B$11","v":0},{"$f":"'Salons Thématiques'!$B$12","v":0},{"$f":"'Salons Thématiques'!$E$4","v":0},{"$f":"'Salons Thématiques'!$E$5","v":0},{"$f":"'Salons Thématiques'!$E$6","v":0},{"$f":"'Salons Thématiques'!$E$7","v":0},{"$f":"'Salons Thématiques'!$E$8","v":0}]

{"sheet":"Ne pas toucher svp 2","index":2,"n_rows":6,"n_cols":22,"rows_kept":6,"cut":false,"hidden":false,"merged":[]}
["N°","MAISON D'EDITION","Raison sociale ","Domaine éditorial","Vœux salons - nom","Lieu","Date","Coût module de base HT","Coût inscription et assurance HT","Coût total éligible HT\n(Coût module de base HT + Coût inscription et assurance HT)","Coût espace souhaité HT\n(A titre indicatif)","Minimum retenu - total",0.75,0.8,"Total Editeur","Nom de la personne en charge du dossier","Qualité fonction","Adresse","Code postal","Ville","Téléphone","Email"]
[null,0,0,0,0,0,"00:00:00",0,0,0,0,0,0,0,null,0,0,0,0,0,0,0]
[null,0,0,0,0,0,"00:00:00",0,0,0,0,0,0,0,null,0,0,0,0,0,0,0]
[null,0,0,0,0,0,"00:00:00",0,0,0,0,0,0,0,null,0,0,0,0,0,0,0]
[null,0,0,0,0,0,"00:00:00",0,0,0,0,0,0,0,null,0,0,0,0,0,0,0]
[null,0,0,0,0,0,"00:00:00",0,0,0,0,0,0,0,null,0,0,0,0,0,0,0]

{"sheet":"NE PAS SUPPRIMER","index":3,"n_rows":8,"n_cols":1,"rows_kept":8,"cut":false,"hidden":true,"merged":[]}
["oui"]
["non"]
[]
["Littérature"]
["Jeunesse"]
["Bande-Dessinée"]
["Sciences Humaines et Sociales"]
["Art et Patrimoine"]